bitfinex-derivatives/quotes_SOLF0:USTF0_20241215
["timestamp","ask_amount","ask_price","bid_price","bid_amount"]
[1734233508886,1.96,219.94,219.87,6.96690826]
[1734233509087,1.96,219.93,219.87,6.96690826]
[1734233509285,8.92690826,219.95,219.9,2.2743]
[1734233509885,1.96,219.95,219.89,2.2743]
[1734233510081,8.92690826,219.95,219.87,6.96690826]
[1734233510282,4.2707,219.98,219.89,6.96690826]
[1734233510482,6.96690826,219.97,219.89,6.96690826]
[1734233510682,1.96,219.97,219.92,2.274]
[1734233510988,1.96,219.97,219.91,6.96690826]
[1734233510989,8.92690826,219.98,219.91,6.96690826]
[1734233511691,8.92690826,219.98,219.91,9.24100826]
[1734233512292,8.92690826,219.98,219.91,6.96690826]
[1734233512589,8.92690826,219.98,219.89,1.96]
[1734233512791,8.92690826,219.98,219.91,6.96690826]
[1734233512987,6.96690826,219.96,219.92,2.2741]
[1734233513188,6.96690826,219.94,219.85,1.96]
[1734233513393,8.92690826,219.94,219.87,6.96690826]
[1734233514690,8.92690826,219.94,219.88,7.80235872]
[1734233515289,1.96,219.94,219.88,7.80235872]
[1734233515496,1.96,219.94,219.89,9.24130826]
[1734233519091,1.96,219.94,219.89,6.96690826]
[1734233520687,1.96,219.94,219.89,9.24130826]
[1734233521093,1.96,219.94,219.89,6.96690826]
[1734233521389,1.96,219.94,219.91,2.2742]
[1734233521696,1.96,219.94,219.91,9.24110826]
[1734233522096,1.96,219.94,219.91,6.96690826]
[1734233522788,1.96,219.94,219.91,9.24100826]
[1734233523393,8.92690826,219.97,219.91,9.24100826]
[1734233523598,6.96690826,219.97,219.91,9.24100826]
[1734233523798,1.96,219.97,219.91,6.96690826]
[1734233524001,1.96,219.97,219.88,5.52785872]
[1734233524002,1.96,219.97,219.93,6.96690826]
[1734233525599,8.92690826,219.99,219.94,2.2738]
[1734233526001,6.96690826,219.99,219.94,2.2738]
[1734233526600,9.24020826,219.99,219.94,2.2738]
[1734233527893,6.96690826,219.99,219.95,2.2737]
[1734233528702,1.96,220.0,219.95,2.2737]
[1734233528899,8.92690826,220.0,219.95,2.2737]
[1734233529803,13.64,220.17,219.97,6.96690826]
[1734233530004,6.96690826,220.07,220.01,6.96690826]
[1734233530200,1.96,220.07,220.01,6.96690826]
[1734233530504,1.96,220.07,220.02,2.273]
[1734233530700,1.96,220.07,220.01,6.96690826]
[1734233531006,10.40200826,220.08,220.01,9.24000826]
[1734233532706,10.40200826,220.08,220.02,2.273]
[1734233533606,12.67440826,220.08,220.01,6.96690826]
[1734233535206,12.67440826,220.08,220.03,6.96690826]
[1734233535806,2.2729,220.03,219.88,5.52785872]
[1734233536007,6.96690826,220.01,219.95,6.96690826]
[1734233536209,8.92690826,220.01,219.95,6.96690826]
[1734233537206,1.96,220.01,219.97,6.96690826]
[1734233539711,1.96,220.01,219.96,2.2736]
[1734233539915,1.96,220.01,219.96,9.24050826]
[1734233542720,2.2728,220.05,219.98,9.24030826]
[1734233542911,1.4751,220.08,220.0,6.96690826]
[1734233542912,1.96,220.04,220.0,6.96690826]
[1734233543414,1.96,220.07,220.01,2.2731]
[1734233543813,1.96,220.07,220.02,6.96690826]
[1734233544614,12.67450826,220.08,220.02,6.96690826]
[1734233545815,10.40200826,220.08,220.02,6.96690826]
[1734233546016,3.4351,220.08,220.03,2.2729]
[1734233546515,3.4351,220.08,220.03,6.96690826]
[1734233547016,1.96,220.08,220.03,6.96690826]
[1734233547920,1.96,220.08,220.02,2.273]
[1734233548114,6.3583,220.11,220.05,9.23960826]
[1734233548320,13.32520826,220.11,220.05,9.23960826]
[1734233548722,1.96,220.11,220.05,6.96690826]
[1734233548923,1.96,220.12,220.05,6.96690826]
[1734233549623,1.96,220.12,220.07,2.2725]
[1734233550418,1.96,220.12,220.07,9.23940826]
[1734233551825,1.96,220.12,220.07,6.96690826]
[1734233552124,9.23880826,220.13,220.07,6.96690826]
[1734233552326,1.96,220.12,220.05,6.96690826]
[1734233553328,6.96690826,220.11,220.02,5.53554806]
[1734233553623,6.96690826,220.07,220.02,6.96690826]
[1734233553930,6.96690826,220.07,219.99,6.96690826]
[1734233555025,6.96690826,220.07,220.01,6.96690826]
[1734233555229,6.96690826,220.07,220.01,9.24000826]
[1734233555423,4.2324,220.08,220.01,9.24000826]
[1734233556032,1.96,220.08,220.03,6.96690826]
[1734233556234,1.96,220.08,220.03,9.23980826]
[1734233557334,1.96,220.08,220.03,6.96690826]
[1734233557635,1.96,220.08,220.02,2.273]
[1734233557838,11.19930826,220.08,220.02,2.273]
[1734233558534,2.2725,220.07,220.01,5.33106509]
[1734233559132,2.2725,220.07,220.02,6.96690826]
[1734233559329,4.2325,220.07,220.02,6.96690826]
[1734233559526,1.96,220.07,220.02,6.96690826]
[1734233559927,1.96,220.07,220.02,9.23990826]
[1734233562237,1.96,220.07,219.96,1.96]
[1734233562428,6.96690826,220.06,220.0,6.96690826]
[1734233563139,2.2727,220.05,220.0,9.24010826]
[1734233563335,2.2727,220.05,220.0,2.2732]
[1734233563840,2.2727,220.05,220.0,9.24010826]
[1734233565438,2.2728,220.04,219.98,2.2734]
[1734233565634,2.2728,220.04,219.99,6.96690826]
[1734233566538,2.273,220.03,219.97,2.2735]
[1734233566740,2.273,220.03,219.97,9.24040826]
[1734233567040,4.233,220.03,219.97,9.24040826]
[1734233568338,4.233,220.03,219.99,6.96690826]
[1734233570741,4.233,220.03,219.98,5.47091978]
[1734233571040,4.233,220.03,219.99,6.96690826]
[1734233576838,4.233,220.03,219.98,7.74431978]
[1734233577137,4.233,220.03,220.0,6.96690826]
[1734233579143,1.96,220.03,220.0,6.96690826]
[1734233580138,1.96,220.06,220.0,6.96690826]
[1734233581039,6.96690826,220.03,219.96,6.96690826]
[1734233581245,1.96,220.02,219.96,6.96690826]
[1734233581440,2.2733,220.0,219.96,6.96690826]
[1734233582147,1.96,220.02,219.87,1.5348]
[1734233582344,2.2735,219.98,219.95,6.96690826]
[1734233582540,6.96690826,220.01,219.87,1.5348]
[1734233582739,6.96690826,219.99,219.92,6.96690826]
[1734233582939,2.2737,219.96,219.92,6.96690826]
[1734233583640,6.96690826,219.97,219.87,3.8093]
[1734233583842,6.96690826,219.97,219.89,6.96690826]
[1734233584343,2.2739,219.94,219.89,6.96690826]
[1734233584546,1.96,219.93,219.89,6.96690826]
[1734233588045,6.96690826,219.91,219.85,6.96690826]
[1734233588245,6.96690826,219.91,219.83,6.96690826]
[1734233588440,2.2749,219.84,219.79,5.54360166]
[1734233588644,4.2349,219.84,219.8,6.96690826]
[1734233589042,6.96690826,219.87,219.82,6.96690826]
[1734233589043,1.96,219.87,219.82,6.96690826]
[1734233589248,1.96,219.87,219.86,6.96690826]
[1734233589444,1.96,219.9,219.86,6.96690826]
[1734233589648,1.96,219.9,219.88,6.96690826]
[1734233590149,1.96,219.93,219.88,9.24140826]
[1734233590348,1.96,219.94,219.9,6.96690826]
[1734233593450,2.2736,219.97,219.92,6.96690826]
[1734233593651,4.4149,220.03,219.94,6.96690826]
[1734233593949,1.96,220.02,219.96,6.96690826]
[1734233594555,8.92690826,220.02,219.96,6.96690826]
[1734233595354,2.2732,220.01,219.96,6.96690826]
[1734233597752,2.2731,220.01,219.96,6.96690826]
[1734233600854,2.2736,219.97,219.91,7.67316012]
[1734233601060,8.94690826,219.96,219.84,1.4869]
[1734233601259,4.4149,220.03,219.88,6.96690826]
[1734233601260,6.96690826,219.94,219.88,6.96690826]
[1734233602458,6.96690826,219.94,219.85,1.98]
[1734233602653,2.274,219.93,219.87,6.96690826]
[1734233604156,6.96690826,219.94,219.86,5.39918989]
[1734233604356,6.96690826,219.92,219.86,5.39918989]
[1734233604558,1.98,219.91,219.86,5.39918989]
[1734233605663,4.2542,219.91,219.86,5.39918989]
[1734233606563,1.98,219.91,219.85,6.96690826]
[1734233606863,2.2744,219.89,219.85,6.96690826]
[1734233609564,2.2744,219.89,219.83,2.275]
[1734233609565,2.2744,219.89,219.83,6.96690826]
[1734233609761,6.96690826,219.9,219.83,6.96690826]
[1734233609964,2.2747,219.87,219.83,6.96690826]
[1734233610164,4.2547,219.87,219.83,6.96690826]
[1734233611163,2.2747,219.86,219.83,6.96690826]
[1734233611566,2.2747,219.86,219.81,6.96690826]
[1734233615366,2.275,219.83,219.79,6.96690826]
[1734233615769,4.255,219.83,219.79,6.96690826]
[1734233616569,1.98,219.83,219.79,6.96690826]
[1734233618971,1.98,219.83,219.78,5.37676926]
[1734233618972,1.98,219.83,219.73,3.5154]
[1734233619167,4.255,219.83,219.78,6.96690826]
[1734233619369,1.98,219.83,219.78,6.96690826]
[1734233620675,2.2751,219.82,219.76,6.96690826]
[1734233621671,2.2751,219.82,219.76,9.24260826]
[1734233622869,4.255,219.83,219.76,9.24260826]
[1734233623276,1.98,219.83,219.78,6.96690826]
[1734233623471,1.98,219.83,219.75,5.44068736]
[1734233623671,1.98,219.83,219.78,6.96690826]
[1734233623872,1.98,219.83,219.78,9.24240826]
[1734233624071,1.98,219.83,219.78,6.96690826]
[1734233624274,6.96690826,219.85,219.78,6.96690826]
[1734233624575,8.94690826,219.85,219.78,6.96690826]
[1734233624778,8.94690826,219.85,219.8,2.2753]
[1734233625771,6.96690826,219.85,219.78,6.96690826]
[1734233625980,1.98,219.85,219.8,6.96690826]
[1734233627574,1.98,219.85,219.82,2.2751]
[1734233628380,1.98,219.86,219.82,2.2751]
[1734233629175,1.98,219.86,219.8,6.96690826]
[1734233629382,1.98,219.86,219.81,2.2752]
[1734233632985,1.98,219.86,219.82,6.96690826]
[1734233633182,11.22140826,219.89,219.82,6.96690826]
[1734233633981,11.22140826,219.89,219.84,2.2749]
[1734233637686,9.24150826,219.87,219.79,1.98]
[1734233637986,6.96690826,219.87,219.79,6.96690826]
[1734233638979,2.2748,219.85,219.79,9.24230826]
[1734233639185,4.2548,219.85,219.79,9.24230826]
[1734233640982,1.98,219.85,219.82,9.24200826]
[1734233641182,6.96690826,219.89,219.82,9.24200826]
[1734233641483,1.98,219.88,219.82,6.96690826]
[1734233641679,1.98,219.88,219.83,2.275]
[1734233642490,2.2741,219.92,219.86,6.96690826]
[1734233642689,1.98,219.92,219.86,6.96690826]
[1734233643587,4.2542,219.92,219.86,6.96690826]
[1734233643983,2.2742,219.92,219.86,6.96690826]
[1734233644690,8.94690826,219.93,219.86,9.24150826]
[1734233645081,8.94690826,219.93,219.86,6.96690826]
[1734233645384,8.94690826,219.93,219.87,2.2746]
[1734233646092,6.96690826,219.93,219.87,2.2746]
[1734233646387,8.94690826,219.93,219.87,2.2746]
[1734233647287,1.33063,219.94,219.88,6.96690826]
[1734233647487,1.33063,219.94,219.82,2.9487]
[1734233647488,1.33063,219.94,219.9,6.96690826]
[1734233648691,1.33063,219.94,219.9,9.24110826]
[1734233652992,8.29753826,219.94,219.85,1.98]
[1734233653196,8.29753826,219.94,219.88,6.96690826]
[1734233654195,10.57153826,219.94,219.88,6.96690826]
[1734233654393,1.98,219.96,219.9,6.96690826]
[1734233654598,8.94690826,219.96,219.9,6.96690826]
[1734233654999,1.98,219.96,219.92,6.96690826]
[1734233655401,8.94690826,219.99,219.92,6.96690826]
[1734233655696,4.2534,219.99,219.94,6.96690826]
[1734233656497,2.2731,220.02,219.96,2.2737]
[1734233656698,8.94690826,220.01,219.96,2.2737]
[1734233658500,11.22010826,220.01,219.96,2.2737]
[1734233658898,11.22010826,220.01,219.94,9.24070826]
[1734233659098,11.22010826,220.01,219.94,6.96690826]
[1734233660406,11.22010826,220.01,219.95,2.2737]
[1734233665600,11.22010826,220.01,219.96,5.38541235]
[1734233666302,1.98,220.01,219.96,12.35232061]
[1734233666616,1.47096,220.05,220.0,6.96690826]
[1734233666906,1.47096,220.05,220.04,6.96690826]
[1734233670405,1.47096,220.05,220.04,9.23970826]
[1734233671108,1.98,220.12,220.07,2.2725]
[1734233671408,2.2719,220.14,220.1,6.96690826]
[1734233671606,4.2519,220.14,220.1,6.96690826]
[1734233672312,4.2519,220.14,220.08,6.96690826]
[1734233672508,6.96690826,220.13,220.01,1.98]
[1734233672707,6.96690826,220.13,220.05,6.96690826]
[1734233672908,2.2723,220.1,220.05,6.96690826]
[1734233673215,4.2523,220.1,220.05,6.96690826]
[1734233676516,4.2523,220.1,220.07,6.96690826]
[1734233676708,1.98,220.1,220.07,6.96690826]
[1734233677110,1.98,220.1,220.01,1.98]
[1734233677418,2.2723,220.09,220.04,6.96690826]
[1734233680812,2.2723,220.09,219.97,2.8669]
[1734233680813,6.96690826,220.09,220.01,6.96690826]
[1734233681118,6.96690826,220.07,220.01,6.96690826]
[1734233681316,2.2728,220.05,220.01,6.96690826]
[1734233683517,2.2728,220.05,219.99,5.44923693]
[1734233683816,2.2728,220.05,220.01,6.96690826]
[1734233685419,1.98,220.06,219.87,1.5224]
[1734233685717,6.96690826,220.05,219.98,6.96690826]
[1734233686413,2.2731,220.02,219.98,6.96690826]
[1734233686712,1.98,220.01,219.98,6.96690826]
[1734233687211,4.2532,220.01,219.98,6.96690826]
[1734233694021,4.3463,220.09,219.98,6.96690826]
[1734233694215,2.2727,220.06,220.0,9.24010826]
[1734233694417,6.96690826,220.08,220.0,6.96690826]
[1734233694620,1.98,220.05,220.0,6.96690826]
[1734233695820,4.2528,220.05,220.0,6.96690826]
[1734233696219,4.2528,220.05,220.02,6.96690826]
[1734233696415,2.2728,220.05,220.02,6.96690826]
[1734233696619,4.3463,220.09,220.02,6.96690826]
[1734233696926,2.2726,220.07,220.02,6.96690826]
[1734233697126,4.2526,220.07,220.02,6.96690826]
[1734233697425,1.98,220.08,220.04,6.96690826]
[1734233697816,1.98,220.08,220.06,6.96690826]
[1734233702319,4.2523,220.09,220.06,6.96690826]
[1734233702518,4.2523,220.09,220.04,6.96690826]
[1734233702717,4.2523,220.09,220.03,2.2729]
[1734233702921,2.2728,220.04,219.99,2.2733]
[1734233703126,2.2728,220.04,220.0,6.96690826]
[1734233704630,2.2728,220.04,220.0,12.51101171]
[1734233705932,2.2728,220.04,220.0,5.54410345]
[1734233706133,2.2728,220.04,220.01,6.96690826]
[1734233707134,2.2728,220.04,220.0,5.54410345]
[1734233707335,2.2728,220.04,220.01,6.96690826]
[1734233709037,2.2728,220.04,220.0,5.54410345]
[1734233709236,2.2728,220.04,220.0,12.51101171]
[1734233709437,2.2728,220.04,219.87,1.4553]
[1734233709438,6.96690826,220.04,219.97,6.96690826]
[1734233710137,2.2733,220.0,219.97,6.96690826]
[1734233710336,1.98,220.01,219.97,6.96690826]
[1734233711737,2.2734,219.99,219.97,6.96690826]
[1734233712141,2.2735,219.98,219.97,6.96690826]
[1734233713137,2.2735,219.98,219.96,6.96690826]
[1734233715735,1.98,220.01,219.96,6.96690826]
[1734233716039,1.98,220.01,219.99,6.96690826]
[1734233718446,5.437675,220.15,219.99,6.96690826]
[1734233718447,6.96690826,220.11,219.99,6.96690826]
[1734233718642,1.98,220.1,220.04,6.96690826]
[1734233719641,2.2724,220.08,220.04,6.96690826]
[1734233722650,1.98,220.1,220.04,6.96690826]
[1734233723142,1.98,220.09,220.06,6.96690826]
[1734233724350,4.2522,220.1,220.06,6.96690826]
[1734233725342,1.98,220.09,220.06,6.96690826]
[1734233726147,4.3644,220.17,220.08,6.96690826]
[1734233726343,2.2719,220.13,220.08,6.96690826]
[1734233726548,6.96690826,220.15,220.08,6.96690826]
[1734233726748,1.98,220.14,220.08,6.96690826]
[1734233726947,2.2721,220.11,220.08,6.96690826]
[1734233728145,1.98,220.14,220.08,6.96690826]
[1734233729552,2.272,220.12,220.08,6.96690826]
[1734233731853,2.2722,220.11,220.05,2.2727]
[1734233732158,1.98,220.1,220.06,6.96690826]
[1734233733552,2.2725,220.08,220.03,5.2142]
[1734233733759,1.98,220.1,220.0,1.98]
[1734233734061,1.98,220.1,220.05,6.96690826]
[1734233735661,2.2725,220.08,220.05,6.96690826]
[1734233737457,4.2523,220.1,220.07,6.96690826]
[1734233737661,1.98,220.1,220.09,6.96690826]
[1734233741063,1.98,220.12,220.09,6.96690826]
[1734233741662,4.252,220.12,220.09,6.96690826]
[1734233741859,2.272,220.12,220.09,6.96690826]
[1734233743268,4.2519,220.13,220.09,6.96690826]
[1734233743460,1.98,220.13,220.11,6.96690826]
[1734233743860,2.2719,220.13,220.11,6.96690826]
[1734233746563,1.98,220.15,220.11,6.96690826]
[1734233746564,2.2717,220.15,220.11,6.96690826]
[1734233746766,4.2517,220.15,220.11,6.96690826]
[1734233747668,1.98,220.15,220.11,6.96690826]
[1734233747869,2.2718,220.14,220.11,6.96690826]
[1734233750264,1.98,220.15,220.07,5.4307846]
[1734233750465,2.2722,220.1,220.07,12.39769286]
[1734233750673,6.96690826,220.13,220.07,6.96690826]
[1734233750873,1.98,220.11,220.07,6.96690826]
[1734233751473,2.2724,220.09,220.07,6.96690826]
[1734233754377,4.2522,220.11,220.07,6.96690826]
[1734233755987,2.2725,220.08,220.03,6.96690826]
[1734233756278,1.96,220.07,220.03,6.96690826]
[1734233757782,4.2325,220.07,220.04,6.96690826]
[1734233758383,1.96,220.07,219.96,1.96]
[1734233758573,1.96,220.07,220.02,6.96690826]
[1734233759572,2.2728,220.05,220.02,6.96690826]
[1734233761374,4.2326,220.07,220.02,6.96690826]
[1734233761883,2.2719,220.13,220.06,6.96690826]
[1734233762081,2.2719,220.13,220.0,7.46707982]
[1734233762082,1.96,220.12,220.08,6.96690826]
[1734233767382,2.2719,220.13,220.08,9.23930826]
[1734233767584,1.96,220.14,220.1,6.96690826]
[1734233768278,2.2717,220.15,220.12,6.96690826]
[1734233768480,1.96,220.15,220.12,6.96690826]
[1734233770987,1.96,220.15,220.1,6.96690826]
[1734233771188,2.2718,220.14,220.1,6.96690826]
[1734233771384,1.96,220.15,220.1,6.96690826]
[1734233772688,2.272,220.13,220.1,6.96690826]
[1734233774889,2.272,220.13,220.08,2.2724]
[1734233775087,2.272,220.13,220.1,6.96690826]
[1734233776086,2.272,220.13,220.08,2.2724]
[1734233776287,2.272,220.13,220.09,6.96690826]
[1734233776692,2.272,220.12,220.09,6.96690826]
[1734233780487,2.272,220.12,220.06,2.2726]
[1734233780694,4.2321,220.11,220.08,6.96690826]
[1734233783090,4.2321,220.11,220.07,6.96690826]
[1734233785898,1.96,220.11,220.07,6.96690826]
[1734233787498,1.96,220.11,220.09,6.96690826]
[1734233800903,1.96,220.11,220.02,1.4062]
[1734233801095,1.96,220.11,220.06,6.96690826]
[1734233802700,2.2724,220.09,220.06,6.96690826]
[1734233803509,2.2724,220.09,220.04,2.2728]
[1734233803698,2.2724,220.09,220.07,6.96690826]
[1734233809303,1.96,220.11,220.07,6.96690826]
[1734233809501,1.96,220.11,220.07,9.23940826]
[1734233810602,2.272,220.12,220.07,9.23940826]
[1734233810803,1.96,220.11,220.07,9.23940826]
[1734233813211,4.2321,220.11,220.07,6.96690826]
[1734233818319,2.2719,220.13,220.09,6.96690826]
[1734233818524,2.2719,220.13,220.11,6.96690826]
[1734233823626,4.2318,220.15,220.11,6.96690826]
[1734233823827,1.96,220.15,220.11,6.96690826]
[1734233825625,2.2719,220.14,220.11,6.96690826]
[1734233825929,1.96,220.15,220.11,6.96690826]
[1734233826727,2.2719,220.13,220.11,6.96690826]
[1734233827129,1.96,220.15,220.11,6.96690826]
[1734233827326,4.2318,220.15,220.11,6.96690826]
[1734233828328,4.5402,220.31,220.13,6.96690826]
[1734233828530,1.96,220.21,220.18,6.96690826]
[1734233829531,1.96,220.21,220.09,4.3754]
[1734233829532,1.96,220.28,220.2,6.96690826]
[1734233829737,1.96,220.28,220.22,6.96690826]
[1734233831238,6.96690826,220.31,220.22,6.96690826]
[1734233831533,1.96,220.28,220.22,6.96690826]
[1734233832232,1.96,220.28,220.26,6.96690826]
[1734233835340,2.2701,220.31,220.26,6.96690826]
[1734233835535,1.96,220.3,220.26,6.96690826]
[1734233836133,1.96,220.3,220.28,6.96690826]
[1734233836937,1.96,220.3,220.26,6.96690826]
[1734233837534,6.96690826,220.33,220.26,6.96690826]
[1734233837739,1.96,220.32,220.26,6.96690826]
[1734233839747,2.2702,220.3,220.26,6.96690826]
[1734233840340,1.96,220.29,220.26,6.96690826]
[1734233842048,4.2303,220.29,220.26,6.96690826]
[1734233842538,2.2704,220.28,220.23,2.2709]
[1734233842843,2.2704,220.28,220.25,6.96690826]
[1734233844140,1.96,220.29,220.25,6.96690826]
[1734233845238,1.96,220.29,220.25,9.23750826]
[1734233845445,1.96,220.29,220.27,6.96690826]
[1734233845844,6.96690826,220.33,220.27,6.96690826]
[1734233846044,1.96,220.31,220.27,6.96690826]
[1734233847745,4.2301,220.31,220.27,6.96690826]
[1734233848438,2.2699,220.33,220.27,6.96690826]
[1734233848641,2.2699,220.33,220.29,6.96690826]
[1734233848841,1.96,220.32,220.29,6.96690826]
[1734233864751,1.96,220.32,220.31,6.96690826]
[1734233865347,1.96,220.34,220.31,6.96690826]
[1734233865550,1.96,220.34,220.33,6.96690826]
[1734233866854,2.2693,220.39,220.33,6.96690826]
[1734233867149,1.96,220.4,220.37,6.96690826]
[1734233867362,1.96,220.41,220.39,6.96690826]
[1734233868051,4.3672,220.43,220.39,6.96690826]
[1734233868357,1.96,220.42,220.39,6.96690826]
[1734233868657,4.229,220.42,220.39,6.96690826]
[1734233869946,4.229,220.42,220.41,6.96690826]
[1734233870250,4.78128,220.44,220.41,6.96690826]
[1734233871150,2.51248,220.44,220.41,6.96690826]
[1734233871354,2.51248,220.44,220.34,1.96]
[1734233871652,2.51248,220.44,220.4,6.96690826]
[1734233872648,2.2689,220.42,220.4,6.96690826]
[1734233873060,2.51248,220.44,220.4,6.96690826]
[1734233873358,2.51248,220.44,220.42,6.96690826]
[1734233874659,4.78128,220.44,220.42,6.96690826]
[1734233876355,2.51248,220.44,220.36,5.4661877]
[1734233876557,9.47938826,220.44,220.28,1.96]
[1734233876858,6.96690826,220.42,220.36,6.96690826]
[1734233877159,9.47938826,220.44,220.38,6.96690826]
[1734233877560,1.96,220.43,220.38,6.96690826]
[1734233877956,1.96,220.43,220.32,5.38554618]
[1734233878157,6.96690826,220.42,220.36,6.96690826]
[1734233878558,2.2693,220.39,220.36,6.96690826]
[1734233878763,1.96,220.38,220.36,6.96690826]
[1734233882266,4.2293,220.38,220.36,6.96690826]
[1734233883560,1.96,220.38,220.36,6.96690826]
[1734233890564,1.96,220.38,220.28,1.96]
[1734233890770,1.96,220.38,220.32,6.96690826]
[1734233890970,1.96,220.38,220.34,6.96690826]
[1734233892673,2.2695,220.36,220.34,6.96690826]
[1734233893363,2.2696,220.35,220.32,6.96690826]
[1734233893566,1.96,220.34,220.32,6.96690826]
[1734233895967,1.96,220.34,220.3,7.6391358]
[1734233896166,1.96,220.34,220.33,6.96690826]
[1734233898277,1.96,220.38,220.33,6.96690826]
[1734233898477,1.96,220.38,220.36,6.96690826]
[1734233899568,1.96,220.38,220.27,3.0307]
[1734233899774,6.96690826,220.37,220.27,3.0307]
[1734233899977,2.2696,220.36,220.31,6.96690826]
[1734233900279,6.96690826,220.37,220.31,6.96690826]
[1734233900680,2.2698,220.33,220.31,6.96690826]
[1734233900880,4.2298,220.33,220.31,6.96690826]
[1734233901881,1.96,220.33,220.31,6.96690826]
[1734233907578,1.96,220.33,220.29,2.2702]
[1734233907783,1.96,220.33,220.29,6.96690826]
[1734233908587,2.27,220.32,220.29,6.96690826]
[1734233908978,2.27,220.32,220.27,2.2704]
[1734233909286,2.2701,220.31,220.22,1.96]
[1734233909579,2.2701,220.31,220.27,6.96690826]
[1734233919183,1.96,220.33,220.21,2.9691]
[1734233919385,2.2702,220.3,220.27,6.96690826]
[1734233919985,1.96,220.33,220.24,2.2707]
[1734233920191,2.2703,220.29,220.27,6.96690826]
[1734233922192,1.96,220.33,220.27,6.96690826]
[1734233922395,1.96,220.33,220.29,6.96690826]
[1734233922793,1.96,220.32,220.29,9.23710826]
[1734233924902,2.2698,220.34,220.29,9.23710826]
[1734233925105,1.96,220.33,220.29,9.23710826]
[1734233927302,4.98406,220.43,220.31,6.96690826]
[1734233927303,4.2296,220.35,220.31,6.96690826]
[1734233927699,1.96,220.35,220.33,6.96690826]
[1734233929309,4.2293,220.38,220.33,9.23670826]
[1734233931407,2.2693,220.38,220.35,6.96690826]
[1734233931611,4.2293,220.38,220.35,6.96690826]
[1734233933011,2.2693,220.38,220.35,6.96690826]
[1734233933311,4.2293,220.38,220.35,6.96690826]
[1734233933509,4.2293,220.38,220.33,9.23670826]
[1734233937411,2.2694,220.37,220.32,6.96690826]
[1734233938911,6.96690826,220.37,220.29,2.2702]
[1734233939116,6.96690826,220.37,220.3,6.96690826]
[1734233939813,6.96690826,220.37,220.29,6.96690826]
[1734233940015,1.96,220.38,220.24,5.33349154]
[1734233940016,6.96690826,220.33,220.24,5.33349154]
[1734233940208,6.96690826,220.33,220.26,6.96690826]
[1734233940209,1.96,220.32,220.26,6.96690826]
[1734233940608,4.23,220.32,220.26,6.96690826]
[1734233942110,4.23,220.32,220.26,9.23740826]
[1734233942514,2.2701,220.31,220.26,9.23740826]
[1734233944915,2.2701,220.31,220.26,2.2705]
[1734233945116,2.2701,220.31,220.26,9.23740826]
[1734233946921,2.2701,220.31,220.26,14.80305927]
[1734233948012,5.56946683,220.42,220.29,6.96690826]
[1734233948226,5.56946683,220.42,220.26,7.52565101]
[1734233948227,1.96,220.41,220.33,6.96690826]
[1734233948515,8.92690826,220.41,220.33,6.96690826]
[1734233949715,2.2694,220.38,220.33,9.23670826]
[1734233951522,2.2694,220.38,220.35,6.96690826]
[1734233952517,1.96,220.41,220.37,6.96690826]
[1734233953124,9.91370826,220.43,220.37,6.96690826]
[1734233953320,2.269,220.41,220.35,6.96690826]
[1734233954725,2.269,220.41,220.35,9.23650826]
[1734233955625,2.2691,220.4,220.35,9.23650826]
[1734233955828,6.96690826,220.41,220.33,2.2697]
[1734233956020,6.96690826,220.41,220.34,6.96690826]
[1734233956625,2.2693,220.38,220.34,6.96690826]
[1734233962423,2.2693,220.38,220.33,2.2697]
[1734233962623,2.2693,220.38,220.34,6.96690826]
[1734233964723,2.2697,220.35,220.3,2.2701]
[1734233964922,4.2297,220.35,220.3,6.96690826]
[1734233966322,1.96,220.35,220.31,2.27]
[1734233969229,1.96,220.35,220.32,6.96690826]
[1734233973734,2.2696,220.36,220.32,6.96690826]
[1734233976144,2.2696,220.35,220.32,6.96690826]
[1734233976344,1.96,220.37,220.32,6.96690826]
[1734233976641,1.96,220.37,220.34,6.96690826]